bitfinex/quotes_SOLUSD_20251118
["timestamp","ask_amount","ask_price","bid_price","bid_amount"]
[1763482376964,15.69473251,140.02,139.97,5.90590482]
[1763482377670,9.78882769,140.0,139.94,0.68]
[1763482377863,9.78882769,140.0,139.95,5.90590482]
[1763482378063,0.7,139.99,139.95,5.90590482]
[1763482378259,22.54096,140.02,139.93,18.12096]
[1763482378479,16.39473251,140.01,139.95,5.90590482]
[1763482378683,10.48882769,140.01,139.95,5.90590482]
[1763482378890,10.48882769,140.01,139.96,5.90590482]
[1763482379076,0.7,140.0,139.96,5.90590482]
[1763482379866,0.7,140.0,139.95,5.90590482]
[1763482380083,0.7,140.0,139.96,5.90590482]
[1763482380486,18.12096,140.02,139.99,5.90590482]
[1763482380697,0.7,140.05,140.01,5.90590482]
[1763482380883,0.7,140.05,140.01,9.87900682]
[1763482381205,0.7,140.05,139.98,9.87900682]
[1763482381206,18.12096,140.03,139.98,9.87900682]
[1763482381518,4.42,140.07,139.98,9.87900682]
[1763482381519,0.7,140.14,140.02,27.99996682]
[1763482381817,0.7,140.14,139.99,18.12096]
[1763482381818,0.7,140.14,140.11,9.87900682]
[1763482382103,18.12096,140.13,140.11,9.87900682]
[1763482382400,0.8,140.16,140.09,5.12]
[1763482382695,0.8,140.16,140.11,9.87900682]
[1763482382895,0.1,140.16,140.13,9.87900682]
[1763482383285,0.1,140.16,140.14,9.87900682]
[1763482383489,0.1,140.16,140.13,0.68]
[1763482383490,0.1,140.16,140.15,9.87900682]
[1763482383874,0.1,140.16,140.13,9.87900682]
[1763482384178,0.1,140.16,140.14,9.87900682]
[1763482384377,0.1,140.16,140.15,9.87900682]
[1763482384775,0.1,140.16,140.14,9.87900682]
[1763482385696,0.1,140.16,140.15,9.87900682]
[1763482386003,0.8,140.16,140.13,4.42]
[1763482386202,0.8,140.16,140.14,9.87900682]
[1763482386203,0.1,140.16,140.14,9.87900682]
[1763482386694,0.1,140.16,140.15,9.87900682]
[1763482386892,0.1,140.16,140.13,14.29900682]
[1763482387195,0.8,140.16,140.11,14.29900682]
[1763482387494,0.7,140.15,140.13,9.87900682]
[1763482387715,0.7,140.15,140.11,14.29900682]
[1763482387912,0.7,140.15,140.11,4.42]
[1763482388286,0.7,140.15,140.11,14.29900682]
[1763482388799,0.7,140.15,140.03,0.71413268]
[1763482388800,10.57900682,140.15,140.09,14.29900682]
[1763482388995,27.99996682,140.14,140.09,14.29900682]
[1763482389205,18.82096,140.14,140.09,14.29900682]
[1763482389395,18.12096,140.14,140.09,14.29900682]
[1763482389594,0.7,140.13,140.09,14.29900682]
[1763482389888,9.87900682,140.11,140.03,0.68]
[1763482390093,27.99996682,140.12,140.06,9.87900682]
[1763482390308,27.99996682,140.12,140.07,9.87900682]
[1763482390309,18.12096,140.1,140.07,9.87900682]
[1763482390506,18.12096,140.1,140.06,9.87900682]
[1763482390808,18.12096,140.11,140.06,10.55900682]
[1763482391009,18.12096,140.11,140.06,9.87900682]
[1763482391213,10.57900682,140.1,140.04,9.87900682]
[1763482391415,9.87900682,140.08,140.02,14.29900682]
[1763482391815,10.57900682,140.08,140.02,14.29900682]
[1763482392514,0.7,140.08,140.03,9.87900682]
[1763482392903,10.57900682,140.08,140.02,14.29900682]
[1763482393111,10.57900682,140.08,140.02,4.42]
[1763482393303,9.87900682,140.06,140.02,4.42]
[1763482393709,0.67,140.05,140.02,4.42]
[1763482394020,9.87900682,140.03,139.97,14.29900682]
[1763482394336,27.90978769,140.04,139.95,9.87900682]
[1763482394337,9.87900682,140.01,139.95,9.87900682]
[1763482394623,10.54900682,140.0,139.95,4.42]
[1763482394929,0.67,139.99,139.95,4.42]
[1763482395090,0.67,140.0,139.96,9.87900682]
[1763482395292,0.67,139.99,139.95,14.29900682]
[1763482395790,0.67,139.99,139.95,4.42]
[1763482395995,10.54900682,140.01,139.95,14.29900682]
[1763482396205,0.67,140.03,139.98,9.87900682]
[1763482396496,18.12096,140.02,139.98,9.87900682]
[1763482396805,18.12096,140.02,139.97,9.87900682]
[1763482397113,0.67,140.01,139.95,4.42]
[1763482397320,0.67,140.01,139.95,5.14]
[1763482397506,18.12096,140.02,139.98,9.87900682]
[1763482397707,0.67,140.01,139.97,9.87900682]
[1763482397915,0.67,140.01,139.96,9.87900682]
[1763482398217,0.67,140.01,139.97,4.42]
[1763482398396,0.67,140.01,139.96,9.87900682]
[1763482398801,18.12096,140.02,139.97,9.87900682]
[1763482399216,18.12096,140.02,139.98,9.87900682]
[1763482399417,9.78882769,140.06,140.01,9.87900682]
[1763482399627,10.54900682,140.07,140.01,9.87900682]
[1763482399825,9.78882769,140.08,140.03,9.87900682]
[1763482400136,0.67,140.07,140.02,14.29900682]
[1763482400293,0.67,140.07,140.02,15.01900682]
[1763482400497,0.67,140.07,140.03,9.87900682]
[1763482401726,9.78882769,140.08,140.03,9.87900682]
[1763482401930,0.67,140.11,140.06,9.87900682]
[1763482402141,0.67,140.11,140.06,4.42]
[1763482402311,18.79096,140.11,140.06,14.29900682]
[1763482402514,0.67,140.14,140.1,9.87900682]
[1763482402714,0.77,140.16,140.11,9.87900682]
[1763482402933,18.12096,140.15,140.11,9.87900682]
[1763482403435,18.79096,140.15,140.11,9.87900682]
[1763482403640,18.12096,140.15,140.1,4.42]
[1763482403797,9.87900682,140.13,140.06,9.87900682]
[1763482404000,9.87900682,140.12,140.06,14.29900682]
[1763482404304,0.67,140.12,140.07,9.87900682]
[1763482404512,0.67,140.11,140.06,14.29900682]
[1763482404836,0.67,140.11,140.07,9.87900682]
[1763482405411,0.67,140.11,139.98,0.66]
[1763482405412,9.87900682,140.08,139.98,0.66]
[1763482405613,27.90978769,140.1,139.99,14.29900682]
[1763482405614,27.99996682,140.06,139.99,14.29900682]
[1763482405829,28.66996682,140.06,139.99,14.95900682]
[1763482406003,28.66996682,140.06,140.0,10.53900682]
[1763482406629,4.42,140.09,140.0,9.87900682]
[1763482406931,18.12096,140.09,140.04,9.87900682]
[1763482407108,9.87900682,140.08,140.04,4.42]
[1763482407304,0.67,140.08,140.04,4.42]
[1763482407619,18.12096,140.09,140.04,14.29900682]
[1763482408017,18.12096,140.09,140.04,14.95900682]
[1763482408229,4.42,140.12,140.04,14.95900682]
[1763482408230,14.29900682,140.12,140.06,9.87900682]
[1763482408535,0.67,140.11,140.06,9.87900682]
[1763482408719,10.54900682,140.11,140.05,10.53900682]
[1763482409233,0.67,140.11,140.05,10.53900682]
[1763482409431,10.54900682,140.11,140.05,10.53900682]
[1763482409614,10.54900682,140.1,140.04,14.29900682]
[1763482409815,0.67,140.09,140.04,4.42]
[1763482410137,0.67,140.09,140.03,4.4]
[1763482410138,37.78879451,140.08,140.03,4.4]
[1763482410323,9.87900682,140.07,140.03,4.4]
[1763482410523,0.67,140.07,140.03,4.4]
[1763482410726,18.79096,140.07,140.03,4.4]
[1763482411130,0.67,140.1,140.04,10.53900682]
[1763482411343,10.54900682,140.1,140.04,10.53900682]
[1763482411536,10.54900682,140.09,140.03,4.4]
[1763482412041,9.87900682,140.1,140.04,9.87900682]
[1763482412213,10.54900682,140.1,140.04,9.87900682]
[1763482412728,9.87900682,140.09,140.03,14.93900682]
[1763482413036,10.54900682,140.09,140.03,14.93900682]
[1763482413236,14.94900682,140.11,140.04,10.53900682]
[1763482413538,0.67,140.1,140.05,9.87900682]
[1763482413717,0.67,140.1,140.04,0.66]
[1763482413718,0.67,140.1,140.04,10.53900682]
[1763482413919,0.67,140.1,140.05,9.87900682]
[1763482414122,0.67,140.1,140.04,0.66]
[1763482414326,18.12096,140.11,140.05,9.87900682]
[1763482414625,18.12096,140.11,140.06,9.87900682]
[1763482415050,18.12096,140.11,140.07,9.87900682]
[1763482415221,18.79096,140.11,140.06,10.53900682]
[1763482415623,18.79096,140.11,140.06,14.93900682]
[1763482416120,20.33783451,140.1,140.04,14.27900682]
[1763482416327,9.87900682,140.09,140.04,4.4]
[1763482416757,0.67,140.08,140.04,4.4]
[1763482417843,18.12096,140.07,140.04,4.4]
[1763482418244,4.4,140.09,140.04,5.06]
[1763482418450,4.4,140.09,140.04,14.93900682]
[1763482418649,5.07,140.09,140.04,5.06]
[1763482418857,0.67,140.08,140.04,4.4]
[1763482419050,0.67,140.08,140.04,14.27900682]
[1763482419234,9.87900682,140.11,140.04,14.27900682]
[1763482419438,18.12096,140.1,140.06,9.87900682]
[1763482419662,9.87900682,140.12,140.05,0.66]
[1763482419846,28.66996682,140.12,140.06,9.87900682]
[1763482421562,18.79096,140.12,140.06,9.87900682]
[1763482422140,18.83096,140.12,140.07,9.87900682]
[1763482422663,0.71,140.11,140.07,9.87900682]
[1763482422862,18.83096,140.12,140.07,9.87900682]
[1763482423041,0.71,140.11,140.07,9.87900682]
[1763482423442,27.99996682,140.08,140.02,9.87900682]
[1763482423654,28.70996682,140.07,140.01,4.4]
[1763482424040,18.83096,140.07,140.02,9.87900682]
[1763482424454,18.83096,140.07,140.02,10.54900682]
[1763482425044,18.12096,140.07,140.02,0.67]
[1763482425244,0.71,140.06,140.01,4.4]
[1763482425477,0.71,140.08,140.03,9.87900682]
[1763482425846,0.71,140.08,140.03,10.54900682]
[1763482426358,28.70996682,140.08,140.03,0.67]
[1763482426676,27.99996682,140.08,140.04,0.67]
[1763482426971,9.87900682,140.08,140.02,9.87900682]
[1763482427148,14.27900682,140.1,140.03,10.54900682]
[1763482427543,9.87900682,140.09,140.03,10.54900682]
[1763482428369,9.87900682,140.09,140.03,9.87900682]
[1763482428574,9.87900682,140.11,140.04,0.67]
[1763482428754,9.87900682,140.14,140.08,9.87900682]
[1763482429072,9.87900682,140.12,140.06,9.87900682]
[1763482429240,9.87900682,140.12,140.07,4.4]
[1763482429442,27.99996682,140.12,140.07,4.4]
[1763482429675,27.99996682,140.12,140.07,5.07]
[1763482429883,18.12096,140.12,140.08,0.67]
[1763482431045,18.12096,140.12,140.07,4.4]
[1763482431259,18.12096,140.12,140.08,0.67]
[1763482431551,27.99996682,140.13,140.08,0.67]
[1763482431873,28.70996682,140.13,140.08,0.67]
[1763482432272,0.1,140.16,140.09,9.87900682]
[1763482432453,0.1,140.16,140.12,9.87900682]
[1763482432672,0.1,140.16,140.13,4.4]
[1763482433278,9.87900682,140.14,140.08,0.67]
[1763482433466,9.87900682,140.13,140.09,4.4]
[1763482433779,9.87900682,140.12,140.09,4.4]
[1763482434082,9.87900682,140.14,140.09,4.4]
[1763482434385,10.58900682,140.15,140.1,0.67]
[1763482434883,9.87900682,140.15,140.09,4.4]
[1763482435179,10.58900682,140.14,140.09,4.4]
[1763482435386,27.99996682,140.1,139.97,15.88905293]
[1763482435593,9.87900682,140.07,139.94,22.2256761]
[1763482435765,9.87900682,140.05,139.99,9.87900682]
[1763482435960,9.87900682,140.04,139.98,5.07]
[1763482436165,10.58900682,140.06,139.98,5.07]
[1763482436460,9.87900682,140.04,139.98,14.27900682]
[1763482436856,18.12096,140.05,140.0,9.87900682]
[1763482437061,28.70996682,140.07,140.01,9.87900682]
[1763482437278,28.70996682,140.07,140.02,4.4]
[1763482437788,28.70996682,140.07,140.02,5.07]
[1763482438169,18.12096,140.07,140.02,5.07]
[1763482438486,10.58900682,140.1,140.04,9.87900682]
[1763482439001,9.87900682,140.11,140.05,14.94900682]
[1763482439178,10.58900682,140.13,140.06,0.67]
[1763482439378,0.71,140.13,140.07,4.4]
[1763482439684,9.87900682,140.12,140.06,28.66996682]
[1763482439889,9.87900682,140.1,140.07,4.4]
[1763482440185,9.87900682,140.08,140.04,4.4]
[1763482440487,9.78882769,140.09,140.02,0.67]
[1763482440791,5.90846671,140.08,140.03,4.4]
[1763482441371,5.90846671,140.07,140.03,5.07]
[1763482441571,5.90846671,140.08,140.03,4.4]
[1763482441886,5.90846671,140.11,140.05,18.12096]
[1763482442073,5.90846671,140.1,140.05,18.12096]
[1763482442276,27.90978769,140.14,140.05,24.02942671]
[1763482442480,5.90846671,140.13,140.07,5.90846671]
[1763482442661,0.71,140.14,140.08,5.90846671]
[1763482442867,0.1,140.16,140.1,5.90846671]
[1763482443164,6.00846671,140.16,140.11,4.4]
[1763482443369,6.00846671,140.16,140.09,0.67]
[1763482443590,5.90846671,140.14,140.09,0.67]
[1763482443762,5.90846671,140.14,140.09,5.07]
[1763482444089,0.71,140.13,140.09,4.4]
[1763482444476,0.71,140.13,140.04,0.67]
[1763482444477,5.90846671,140.1,140.04,0.67]
[1763482444677,9.78882769,140.11,140.02,4.4]
[1763482444678,5.90846671,140.07,140.02,4.4]
[1763482445204,9.78882769,140.11,140.04,5.90846671]
[1763482445205,24.73942671,140.11,140.04,5.90846671]
[1763482445370,18.12096,140.11,140.05,0.67]
[1763482445567,24.02942671,140.11,140.06,4.4]
[1763482445785,0.81,140.16,140.08,5.90846671]
[1763482445969,6.71846671,140.16,140.1,5.90846671]
[1763482446166,0.1,140.16,140.11,5.90846671]
[1763482446393,0.1,140.16,140.14,5.90846671]
[1763482446581,0.1,140.16,140.15,4.4]
[1763482446908,23.78733947,140.26,140.15,4.4]
[1763482446909,17.84096,140.26,140.25,18.12096]
[1763482447206,0.1,140.3,140.29,27.90978769]
[1763482447366,0.1,140.3,140.29,38.2182544]
[1763482447708,0.1,140.31,140.3,9.78882769]
[1763482447919,0.1,140.31,140.3,21.60576111]
[1763482448100,0.1,140.34,140.33,18.12096]
[1763482448288,0.1,140.34,140.33,28.42942671]
[1763482448891,0.1,140.34,140.33,24.02942671]
[1763482449096,0.81,140.34,140.32,5.90846671]
[1763482449293,0.1,140.34,140.32,5.90846671]
[1763482449700,0.1,140.34,140.29,5.90846671]
[1763482449701,0.71,140.33,140.29,5.90846671]
[1763482450024,0.71,140.33,140.3,5.90846671]
[1763482450311,6.61846671,140.33,140.29,4.4]
[1763482450702,0.71,140.32,140.29,4.4]
[1763482451620,0.71,140.32,140.28,5.90846671]
[1763482451910,0.71,140.32,140.29,4.4]
[1763482452318,0.71,140.32,140.29,10.30846671]
[1763482452819,0.71,140.32,140.29,4.4]
[1763482453189,0.69,140.32,140.3,5.90846671]
[1763482453417,0.69,140.32,140.29,10.30846671]
[1763482453993,0.69,140.32,140.3,5.90846671]
[1763482454194,0.69,140.32,140.29,10.30846671]
[1763482454397,0.1,140.34,140.31,5.90846671]
[1763482454589,0.1,140.34,140.32,4.4]
[1763482454919,0.79,140.34,140.32,4.4]
[1763482455330,0.79,140.34,140.29,5.90846671]
[1763482455540,5.90846671,140.31,140.25,5.90846671]
[1763482455836,0.69,140.3,140.26,4.4]
[1763482456213,6.59846671,140.3,140.26,4.4]
[1763482456613,0.69,140.29,140.26,4.4]
[1763482458050,0.69,140.29,140.22,5.90846671]
[1763482458246,5.90846671,140.26,140.1,57.58935585]
[1763482458412,18.12096,140.28,140.1,57.58935585]
[1763482458413,5.90846671,140.25,140.19,5.90846671]
[1763482458614,5.90846671,140.24,140.12,21.96562531]
[1763482458819,0.69,140.24,140.21,5.90846671]
[1763482459028,0.69,140.24,140.21,4.4]
[1763482459629,6.59846671,140.24,140.2,4.4]
[1763482460140,5.90846671,140.22,140.18,4.4]
[1763482460439,5.90846671,140.21,140.16,4.4]
[1763482460736,0.72,140.21,140.16,4.4]
[1763482460914,6.62846671,140.2,140.16,4.4]
[1763482461110,0.72,140.22,140.19,5.90846671]
[1763482461328,0.72,140.22,140.18,5.90846671]
[1763482461643,5.90846671,140.21,140.15,5.90846671]
[1763482461810,5.90846671,140.2,140.15,4.4]
[1763482462011,5.90846671,140.18,140.14,4.4]
[1763482462205,5.90846671,140.17,140.06,21.11680293]
[1763482462429,0.72,140.2,140.1,5.90846671]
[1763482462617,6.62846671,140.2,140.14,5.90846671]
[1763482462920,0.72,140.2,140.15,10.30846671]
[1763482463119,0.72,140.22,140.18,5.90846671]
[1763482464218,0.72,140.22,140.19,10.30846671]
[1763482464715,0.72,140.22,140.19,4.4]
[1763482465131,0.72,140.22,140.16,18.12096]
[1763482465132,6.62846671,140.22,140.16,18.12096]
[1763482465331,6.62846671,140.22,140.17,4.4]
[1763482465531,0.72,140.22,140.18,5.90846671]
[1763482465730,0.72,140.21,140.18,5.90846671]
[1763482466116,0.72,140.21,140.17,10.30846671]
[1763482466816,0.72,140.21,140.18,5.90846671]
[1763482467335,0.72,140.23,140.19,5.90846671]
[1763482467512,0.72,140.23,140.18,5.90846671]
[1763482467842,18.12096,140.22,140.12,9.78882769]
[1763482468044,9.78882769,140.19,140.04,0.71408169]
[1763482468336,5.90846671,140.13,140.08,10.30846671]
[1763482468543,5.90846671,140.11,140.06,0.2]
[1763482468743,5.90846671,140.1,140.06,4.6]
[1763482468940,5.90846671,140.09,140.06,0.2]
[1763482469252,5.90846671,140.07,140.01,5.90846671]
[1763482469539,0.72,140.08,140.0,10.30846671]
[1763482469540,5.90846671,140.05,140.0,10.30846671]
[1763482469758,6.62846671,140.07,140.01,5.90846671]
[1763482470265,5.90846671,140.04,139.98,9.78882769]
[1763482470440,5.90846671,140.05,140.0,5.90846671]
[1763482470624,0.72,140.06,139.99,4.4]
[1763482470819,5.90846671,140.05,139.99,10.30846671]
[1763482471044,5.90846671,140.03,139.98,4.4]
[1763482471323,5.90846671,140.02,139.98,4.4]
[1763482471523,5.90846671,140.03,139.98,4.4]
[1763482471922,0.72,140.03,139.98,10.30846671]
[1763482472123,0.72,140.02,139.98,10.30846671]
[1763482472548,5.90846671,140.04,139.99,5.90846671]
[1763482472549,6.62846671,140.04,139.99,5.90846671]
[1763482474928,5.90846671,139.97,139.92,0.2]
[1763482475149,24.02942671,139.99,139.94,5.90846671]
[1763482475350,0.72,139.99,139.94,5.90846671]
[1763482475655,0.72,139.99,139.94,10.30846671]
[1763482476026,6.62846671,139.99,139.93,5.90846671]
[1763482476228,5.90846671,139.94,139.92,0.2]
[1763482476562,6.62846671,139.93,139.92,0.2]
[1763482478159,0.72,139.93,139.92,0.2]
[1763482478534,6.62846671,139.95,139.92,0.2]
[1763482478934,6.62846671,139.94,139.92,0.2]
[1763482479362,0.72,139.93,139.92,0.2]
[1763482479563,6.62846671,139.93,139.92,0.2]
[1763482479772,0.72,139.93,139.92,0.2]
[1763482480068,6.62846671,139.93,139.92,0.2]
[1763482480441,9.64749406,140.0,139.92,0.2]
[1763482480679,5.90846671,139.96,139.92,0.2]
[1763482480841,27.90978769,139.98,139.92,0.2]
[1763482481047,5.90846671,139.96,139.92,0.2]
[1763482481545,0.72,139.95,139.92,0.2]
[1763482482445,5.90846671,139.94,139.92,0.2]
[1763482482645,0.72,139.95,139.92,0.2]
[1763482482872,0.68,139.94,139.92,0.2]
[1763482483163,0.68,139.97,139.92,0.2]
[1763482483364,0.68,140.0,139.94,5.90846671]
[1763482483566,0.68,140.0,139.96,5.90846671]
[1763482483741,11.92021206,140.09,139.97,5.90846671]
[1763482483941,5.90846671,140.03,139.98,5.90846671]
[1763482484169,9.78882769,140.04,139.98,5.90846671]
[1763482484369,5.90846671,140.05,140.0,5.90846671]
[1763482484569,0.68,140.06,140.01,5.90846671]
[1763482484769,0.68,140.06,140.02,10.30846671]
[1763482484961,0.68,140.06,140.02,4.4]
[1763482485664,5.90846671,140.05,140.02,4.4]
[1763482485863,0.68,140.06,140.02,4.4]
[1763482486065,0.68,140.09,140.03,5.90846671]
[1763482486269,6.58846671,140.09,140.03,5.90846671]
[1763482486767,0.68,140.09,140.04,5.90846671]
[1763482486965,6.58846671,140.09,140.04,5.90846671]
[1763482487359,0.68,140.08,140.04,5.90846671]
[1763482488266,0.68,140.08,140.03,5.90846671]
[1763482488579,18.12096,140.1,140.05,5.90846671]
[1763482488876,0.68,140.14,140.09,5.90846671]
[1763482489078,6.58846671,140.13,140.08,5.90846671]
[1763482489266,5.90846671,140.12,140.06,5.90846671]
[1763482489465,6.58846671,140.12,140.07,4.4]
[1763482489775,0.68,140.11,140.07,4.4]
[1763482489980,0.68,140.11,140.07,10.30846671]
[1763482490382,0.68,140.11,140.07,4.4]
[1763482490551,0.68,140.11,140.07,10.30846671]
[1763482490869,0.68,140.11,140.08,5.90846671]
[1763482491070,18.12096,140.14,140.07,4.4]
[1763482491278,18.80096,140.14,140.07,4.4]
[1763482491574,6.58846671,140.13,140.08,4.4]
[1763482491786,5.90846671,140.1,140.04,5.90846671]
[1763482492085,5.90846671,140.07,140.02,4.28]
[1763482492577,5.90846671,140.05,140.0,5.90846671]
[1763482492870,5.90846671,140.04,139.98,4.4]
[1763482493073,5.90846671,140.04,139.98,22.52096]
[1763482493263,6.58846671,140.04,139.99,5.90846671]
[1763482493466,0.68,140.03,139.99,5.90846671]
[1763482494149,0.68,140.03,139.98,10.30846671]
[1763482494576,5.90846671,140.01,139.95,5.90846671]
[1763482494872,5.90846671,140.0,139.95,10.30846671]
[1763482495172,0.68,140.0,139.94,4.4]
[1763482495475,0.68,139.99,139.95,5.90846671]
[1763482495699,6.58846671,139.99,139.92,4.6]
[1763482495854,5.90846671,139.98,139.93,5.90846671]
[1763482496053,0.68,139.97,139.93,5.90846671]
[1763482496474,0.68,140.0,139.95,5.90846671]
[1763482496785,0.68,140.01,139.92,0.2]
[1763482496994,18.12096,140.02,139.92,0.2]
[1763482496995,18.12096,140.02,139.97,5.90846671]
[1763482497185,0.68,140.01,139.97,5.90846671]
[1763482499053,0.68,140.01,139.92,0.2]
[1763482499287,0.68,140.01,139.96,5.90846671]
[1763482499461,0.68,140.01,139.97,5.90846671]
[1763482499659,0.68,140.01,139.96,5.90846671]
[1763482499862,0.68,140.01,139.97,5.90846671]
[1763482500252,6.58846671,140.04,139.98,5.90846671]
[1763482500452,6.58846671,140.06,140.01,5.90846671]
[1763482500663,0.68,140.05,140.0,5.90846671]
[1763482500864,5.90846671,140.08,140.03,5.90846671]
[1763482501155,5.90846671,140.08,140.0,4.4]
[1763482501156,5.90846671,140.05,140.0,4.4]
[1763482501356,5.90846671,140.05,139.99,4.4]
[1763482501575,5.90846671,140.05,139.92,0.2]
[1763482501576,5.90846671,140.0,139.92,0.2]
[1763482501780,5.90846671,140.01,139.95,5.90846671]
[1763482501959,0.68,140.08,139.96,0.71448985]
[1763482502153,5.90846671,140.04,139.97,4.4]
[1763482502362,5.90846671,140.03,139.97,22.52096]
[1763482502559,27.90978769,140.07,139.94,18.12096]
[1763482502560,5.90846671,140.02,139.94,18.12096]
[1763482502776,9.78882769,140.02,139.94,18.32096]
[1763482503084,0.68,140.02,139.98,9.88315091]
[1763482503261,0.68,140.02,139.95,0.2]
[1763482503459,10.56315091,140.02,139.96,14.28315091]
[1763482503657,9.88315091,140.01,139.96,14.28315091]
[1763482503855,10.56315091,140.05,139.99,9.88315091]
[1763482504077,44.9060375,140.18,139.96,4.6]
[1763482504078,0.68,140.16,140.04,19.76630182]
[1763482504394,9.88315091,140.12,140.06,9.88315091]
[1763482504582,0.68,140.15,140.07,9.88315091]
[1763482504755,9.88315091,140.13,140.08,4.4]
[1763482505098,9.88315091,140.13,140.07,9.88315091]
[1763482505099,9.88315091,140.12,140.03,18.12096]
[1763482505272,9.88315091,140.11,140.05,9.88315091]
[1763482505479,9.88315091,140.11,140.06,4.4]
[1763482505782,0.68,140.1,140.06,4.4]
[1763482505996,0.68,140.14,140.08,9.88315091]
[1763482506163,0.68,140.18,140.11,9.88315091]
[1763482506360,0.68,140.2,140.15,9.88315091]
[1763482506995,0.68,140.25,140.16,10.08315091]
[1763482507194,10.56315091,140.24,140.17,4.4]
[1763482507367,10.56315091,140.24,140.18,4.4]
[1763482507575,0.68,140.23,140.18,14.28315091]
[1763482507790,9.88315091,140.22,140.14,18.32096]
[1763482507961,9.88315091,140.2,140.11,0.2]
[1763482508162,9.88315091,140.17,140.12,14.28315091]
[1763482508470,9.88315091,140.17,140.08,9.78882769]
[1763482508471,9.88315091,140.16,140.13,4.4]
[1763482508665,9.88315091,140.14,140.1,4.4]
[1763482508859,18.80096,140.15,140.1,4.4]
[1763482509085,18.80096,140.15,140.05,0.2]
[1763482509086,0.68,140.14,140.06,18.12096]
[1763482509391,9.88315091,140.13,140.02,0.2]
[1763482509561,18.12096,140.08,139.96,0.2]
[1763482509761,18.12096,140.08,139.97,4.4]
[1763482510058,10.56315091,140.1,139.97,4.4]
[1763482510388,9.88315091,140.08,140.03,9.88315091]
[1763482510571,28.68411091,140.09,140.04,9.88315091]
[1763482510773,28.00411091,140.09,140.04,9.88315091]
[1763482510988,10.56315091,140.11,140.06,9.88315091]
[1763482511291,18.12096,140.08,140.01,0.2]
[1763482511524,18.12096,140.08,140.01,4.4]
[1763482511675,18.80096,140.08,140.03,9.88315091]
[1763482511985,0.68,140.07,140.03,9.88315091]
[1763482512191,9.78882769,140.06,139.92,0.2]
[1763482512500,9.88315091,140.03,139.98,9.88315091]
[1763482512668,9.88315091,140.03,139.94,4.6]
[1763482512872,9.88315091,140.03,139.96,18.12096]
[1763482513201,22.52096,140.08,139.93,9.78882769]
[1763482513202,10.59315091,140.02,139.93,9.78882769]
[1763482513388,9.88315091,139.99,139.94,4.4]
[1763482513572,9.78882769,140.0,139.92,0.2]
[1763482513573,9.88315091,139.96,139.92,0.2]
[1763482513889,9.88315091,139.95,139.92,0.2]
[1763482514396,0.71,139.94,139.92,0.2]
[1763482514695,19.6719786,139.96,139.92,0.2]
[1763482515070,19.6719786,139.94,139.92,0.2]
[1763482515277,10.59315091,139.93,139.92,0.2]
[1763482515475,0.71,139.93,139.92,0.2]
[1763482515702,10.59315091,139.93,139.92,0.2]
[1763482515908,9.78882769,139.92,139.91,0.2]
[1763482516074,20.3819786,139.92,139.91,0.2]
[1763482516276,0.71,139.92,139.91,0.2]
[1763482517374,20.3819786,139.92,139.91,0.2]
[1763482518496,9.78882769,139.91,139.9,0.2]
[1763482518806,9.78882769,139.91,139.84,0.2]
[1763482518807,18.12096,139.88,139.84,0.2]
[1763482519024,18.12096,139.88,139.84,10.08315091]
[1763482519199,10.59315091,139.92,139.86,9.88315091]
[1763482519390,10.59315091,139.92,139.84,0.2]
[1763482519391,9.88315091,139.92,139.84,18.32096]
[1763482519597,10.59315091,139.92,139.86,9.88315091]
[1763482519907,0.71,139.91,139.86,9.88315091]
[1763482520303,10.59315091,139.91,139.84,18.32096]
[1763482520510,10.59315091,139.91,139.85,9.88315091]